Workbook

Sheet 行銷活動銷售漏斗圖
B1: 行銷活動 | F1: 此儲存格中為顯示銷售階段的銷售漏斗圖和對應資料。
B2: 銷售漏斗圖
B3: 階段 | C3: 潛在客戶 | D3: 未成交 | E3: 不符資格
B4: 已識別 | C4: 250 | D4: 20 | E4: 9
B5: 已連絡 | C5: 150 | D5: 15
B6: 討論 | C6: 100 | D6: 35
B7: 已成交 | C7: 15
B9: 提示：在上方的儲存格中輸入數字即可更新銷售漏斗圖表。

Sheet 從頭開始 (hidden)
A1: *** 這張工作表要保持隱藏 ***
B7: 平均年： | C7: =AVERAGE(AD13:AE13) -> 183
AD9: =AA12/2+8+50 -> 183
E10: 百分比數列與標籤 | J10: 階段總計與標籤 | O10: 未成交總計與標籤 | T10: 不符資格的總計與標籤 | Y10: 邊緣
B11: 階段 | C11: x | E11: 位移 | G11: 0.45 | H11: =3.85%*C7 -> 7.0455 | J11: 位移 | L11: 0.45 | M11: =-3.85%*C7 -> -7.0455 | O11: 位移 | Q11: 0.45 | R11: =-19.2%*C7 -> -35.136 | T11: 位移 | V11: 0.45 | W11: =-25.7%*C7 -> -47.031 | Y11: 1.8 | AD11: =AD12-8 -> 50 | AE11: =AE12+8 -> 316
B12: 環圈 | E12: 標籤 | F12: 值 | G12: x | H12: y | J12: 標籤 | K12: 值 | L12: x | M12: y | O12: 標籤 | P12: 值 | Q12: x | R12: y | T12: 標籤 | U12: 值 | V12: x | W12: y | Y12: 2 | AA12: =K13 -> 250 | AB12: 已識別 | AD12: =-AA12/2+$AD$9 -> 58 | AE12: =AA12/2+$AD$9 -> 308 | AG12: =AE12 -> 308 | AH12: 0 | AI12: 0 | AJ12: 0
B13: 已識別 | C13: 2 | E13: =F13 -> 100% | F13: 100% | G13: =$C13+G$11 -> 2.45 | H13: =$C$7+$H$11 -> 190.0455 | J13: =UPPER(B13)&" "&K13 -> 已識別 250 | K13: =行銷活動銷售漏斗圖!C4 -> 250 | L13: =$C13+L$11 -> 2.45 | M13: =$C$7+$M$11 -> 175.9545 | O13: ="未成交 " & P13 -> 未成交 20 | P13: =行銷活動銷售漏斗圖!D4 -> 20 | Q13: =$C13+Q$11 -> 2.45 | R13: =$C$7+$R$11 -> 147.864 | T13: ="不符資格 "&U13 -> 不符資格 9 | U13: =行銷活動銷售漏斗圖!E4 -> 9 | V13: =$C13+V$11 -> 2.45 | W13: =$C$7+$W$11 -> 135.969 | Y13: =Y12+1 -> 3 | AB13: 已識別 | AD13: =-K13/2+$AD$9 -> 58 | AE13: =K13/2+$AD$9 -> 308 | AG13: =AE13 -> 308 | AH13: =AE13 -> 308 | AI13: 0 | AJ13: 0
B14: 已連絡 | C14: 3 | E14: =F14 -> 60% | F14: =行銷活動銷售漏斗圖!C5/行銷活動銷售漏斗圖!$C$4 -> 60% | G14: =$C14+G$11 -> 3.45 | H14: =$C$7+$H$11 -> 190.0455 | J14: =UPPER(B14)&" "&K14 -> 已連絡 150 | K14: =行銷活動銷售漏斗圖!C5 -> 150 | L14: =$C14+L$11 -> 3.45 | M14: =$C$7+$M$11 -> 175.9545 | O14: ="未成交 " & P14 -> 未成交 15 | P14: =行銷活動銷售漏斗圖!D5 -> 15 | Q14: =$C14+Q$11 -> 3.45 | R14: =$C$7+$R$11 -> 147.864 | Y14: =Y13+1 -> 4 | AB14: 已連絡 | AD14: =-K14/2+$AD$9 -> 108 | AE14: =K14/2+$AD$9 -> 258 | AH14: =AE14 -> 258 | AI14: =AE14 -> 258 | AJ14: 0
B15: 討論 | C15: 4 | E15: =F15 -> 40% | F15: =行銷活動銷售漏斗圖!C6/行銷活動銷售漏斗圖!$C$4 -> 40% | G15: =$C15+G$11 -> 4.45 | H15: =$C$7+$H$11 -> 190.0455 | J15: =UPPER(B15)&" "&K15 -> 討論 100 | K15: =行銷活動銷售漏斗圖!C6 -> 100 | L15: =$C15+L$11 -> 4.45 | M15: =$C$7+$M$11 -> 175.9545 | O15: ="未成交 " & P15 -> 未成交 35 | P15: =行銷活動銷售漏斗圖!D6 -> 35 | Q15: =$C15+Q$11 -> 4.45 | R15: =$C$7+$R$11 -> 147.864 | Y15: =Y14+1 -> 5 | AB15: 討論 | AD15: =-K15/2+$AD$9 -> 133 | AE15: =K15/2+$AD$9 -> 233 | AI15: =AE15 -> 233 | AJ15: =AE15 -> 233
B16: 已成交 | C16: 5 | E16: =F16 -> 6% | F16: =行銷活動銷售漏斗圖!C7/行銷活動銷售漏斗圖!$C$4 -> 6% | G16: =$C16+G$11 - 0.1 -> 5.35 | H16: =$C$7+$H$11 -> 190.0455 | J16: =UPPER(B16) -> 已成交 | K16: =行銷活動銷售漏斗圖!C7 -> 15 | L16: =$C16+L$11 -0.1 -> 5.35 | M16: =$C$7+$M$11 -> 175.9545 | Y16: =Y15+1 -> 6 | AB16: 已成交 | AD16: =-K16/2+$AD$9 -> 175.5 | AE16: =K16/2+$AD$9 -> 190.5 | AJ16: =AE16 -> 190.5
B17: 已成交點 | C17: 6 | K17: =K16 -> 15 | L17: 6.44 | M17: =C7 -> 183
